fUSD/lending_fUSD_20241215
["ID","MTS","AMOUNT","RATE_DAILY","PERIOD"]
[345498044,1734297038150,-500.0,0.00019999,3]
[345498046,1734297038160,-500.0,0.00019999,3]
[345498048,1734297038172,-500.0,0.00019999,3]
[345498050,1734297038182,-500.0,0.00019999,3]
[345498052,1734297038192,-168.06,0.00019999,3]
[345498054,1734297038202,-756.3,0.00019999,3]
[345498056,1734297038211,-756.3,0.00019999,3]
[345498058,1734297038220,-756.3,0.00019999,3]
[345498075,1734297038376,-500.0,0.00019999,3]
[345498077,1734297038386,-756.3,0.00019999,3]
[345498079,1734297038396,-500.0,0.00019999,3]
[345498081,1734297038405,-500.0,0.00019999,3]
[345498083,1734297038414,-756.3,0.00019999,3]
[345498086,1734297038424,-500.0,0.00019999,3]
[345498087,1734297038434,-756.3,0.00019999,3]
[345498089,1734297038443,-579.99,0.00019999,3]
[345498091,1734297038452,-756.3,0.00019999,3]
[345498093,1734297038461,-756.3,0.00019999,3]
[345498095,1734297038471,-756.3,0.00019999,3]
[345498097,1734297038480,-756.3,0.00019999,3]
[345498099,1734297038489,-756.3,0.00019999,3]
[345498101,1734297038498,-756.3,0.00019999,3]
[345498103,1734297038507,-500.0,0.00019999,3]
[345498105,1734297038516,-606.81358967,0.00019999,3]
[345498107,1734297038525,-542.15,0.00019999,3]
[345498109,1734297038534,-500.0,0.00019999,3]
[345498111,1734297038543,-500.0,0.00019999,3]
[345498113,1734297038552,-500.0,0.00019999,3]
[345498115,1734297038561,-500.0,0.00019999,3]
[345498117,1734297038570,-500.0,0.00019999,3]
[345498119,1734297038579,-500.0,0.00019999,3]
[345498121,1734297038589,-500.0,0.00019999,3]
[345498123,1734297038598,-500.0,0.00019999,3]
[345498125,1734297038607,-500.0,0.00019999,3]
[345498127,1734297038616,-500.0,0.00019999,3]
[345498129,1734297038625,-500.0,0.00019999,3]
[345498131,1734297038634,-500.0,0.00019999,3]
[345498133,1734297038644,-496.78275279,0.00019999,3]
[345498135,1734297038653,-500.0,0.00019999,3]
[345498137,1734297038662,-500.0,0.00019999,3]
[345498139,1734297038671,-500.0,0.00019999,3]
[345498141,1734297038683,-350.15677153,0.00019999,3]
[345498143,1734297038692,-500.0,0.00019999,3]
[345498146,1734297038702,-500.0,0.00019999,3]
[345498148,1734297038711,-500.0,0.00019999,3]
[345498150,1734297038721,-500.0,0.00019999,3]
[345498152,1734297038730,-500.0,0.00019999,3]
[345498153,1734297038739,-500.0,0.00019999,3]
[345498155,1734297038748,-500.0,0.00019999,3]
[345498157,1734297038758,-500.0,0.00019999,3]
[345498159,1734297038767,-500.0,0.00019999,3]
[345498161,1734297038776,-500.0,0.00019999,3]
[345498163,1734297038784,-500.0,0.00019999,3]
[345498165,1734297038794,-500.0,0.00019999,3]
[345498167,1734297038803,-578.29,0.00019999,3]
[345498169,1734297038812,-500.0,0.00019999,3]
[345498171,1734297038821,-500.0,0.00019999,3]
[345498173,1734297038830,-500.0,0.00019999,3]
[345498175,1734297038839,-627.03,0.00019999,3]
[345498177,1734297038848,-500.0,0.00019999,3]
[345498179,1734297038858,-500.0,0.00019999,3]
[345498182,1734297038867,-500.0,0.00019999,3]
[345498184,1734297038876,-500.0,0.00019999,3]
[345498186,1734297038887,-500.0,0.00019999,3]
[345498188,1734297038896,-437.3,0.00019999,3]
[345498190,1734297038906,-500.0,0.00019999,3]
[345498192,1734297038917,-500.0,0.00019999,3]
[345498194,1734297038928,-500.0,0.00019999,3]
[345498196,1734297038937,-500.0,0.00019999,3]
[345498198,1734297038947,-500.0,0.00019999,3]
[345498200,1734297038956,-500.0,0.00019999,3]
[345498202,1734297038966,-500.0,0.00019999,3]
[345498204,1734297038975,-500.0,0.00019999,3]
[345498206,1734297038984,-500.0,0.00019999,3]
[345498208,1734297038993,-500.0,0.00019999,3]
[345498209,1734297039002,-500.0,0.00019999,3]
[345498211,1734297039011,-500.0,0.00019999,3]
[345498213,1734297039020,-274.3,0.00019999,3]
[345498215,1734297039029,-500.0,0.00019999,3]
[345498217,1734297039039,-500.0,0.00019999,3]
[345498219,1734297039048,-500.0,0.00019999,3]
[345498221,1734297039057,-500.0,0.00019999,3]
[345498223,1734297039067,-500.0,0.00019999,3]
[345498225,1734297039076,-500.0,0.00019999,3]
[345498227,1734297039085,-500.0,0.00019999,3]
[345498229,1734297039099,-500.0,0.00019999,3]
[345498231,1734297039108,-500.0,0.00019999,3]
[345498233,1734297039117,-500.0,0.00019999,3]
[345498235,1734297039127,-500.0,0.00019999,3]
[345498237,1734297039138,-553.08,0.00019999,3]
[345498239,1734297039147,-500.0,0.00019999,3]
[345498241,1734297039156,-500.0,0.00019999,3]
[345498243,1734297039166,-500.0,0.00019999,3]
[345498245,1734297039177,-500.0,0.00019999,3]
[345498247,1734297039189,-500.0,0.00019999,3]
[345498249,1734297039199,-500.0,0.00019999,3]
[345498251,1734297039208,-500.0,0.00019999,3]
[345498253,1734297039217,-500.0,0.00019999,3]
[345498255,1734297039226,-500.0,0.00019999,3]
[345498257,1734297039236,-500.0,0.00019999,3]
[345498259,1734297039245,-500.0,0.00019999,3]
[345498261,1734297039254,-500.0,0.00019999,3]
[345498263,1734297039264,-500.0,0.00019999,3]
[345498265,1734297039273,-500.0,0.00019999,3]
[345498267,1734297039282,-500.0,0.00019999,3]
[345498269,1734297039291,-500.0,0.00019999,3]
[345498271,1734297039301,-258.35972684,0.00019999,3]
[345498273,1734297039311,-500.0,0.00019999,3]
[345498275,1734297039319,-500.0,0.00019999,3]
[345498277,1734297039329,-500.0,0.00019999,3]
[345498279,1734297039338,-528.51,0.00019999,3]
[345498281,1734297039347,-984.92,0.00019999,3]
[345498284,1734297039357,-984.92,0.00019999,3]
[345498286,1734297039366,-984.92,0.00019999,3]
[345498289,1734297039376,-500.0,0.00019999,3]
[345498292,1734297039386,-984.92,0.00019999,3]
[345498295,1734297039396,-500.0,0.00019999,3]
[345498297,1734297039405,-984.92,0.00019999,3]
[345498299,1734297039414,-500.0,0.00019999,3]
[345498301,1734297039425,-984.92,0.00019999,3]
[345498303,1734297039434,-500.0,0.00019999,3]
[345498305,1734297039443,-984.92,0.00019999,3]
[345498307,1734297039453,-984.92,0.00019999,3]
[345498309,1734297039463,-984.92,0.00019999,3]
[345498311,1734297039473,-984.92,0.00019999,3]
[345498313,1734297039482,-984.92,0.00019999,3]
[345498315,1734297039491,-984.92,0.00019999,3]
[345498317,1734297039502,-500.0,0.00019999,3]
[345498318,1734297039512,-500.0,0.00019999,3]
[345498319,1734297039522,-500.0,0.00019999,3]
[345498320,1734297039532,-500.0,0.00019999,3]
[345498321,1734297039543,-500.0,0.00019999,3]
[345498322,1734297039555,-500.0,0.00019999,3]
[345498323,1734297039564,-500.0,0.00019999,3]
[345498324,1734297039574,-500.0,0.00019999,3]
[345498325,1734297039583,-500.0,0.00019999,3]
[345498326,1734297039592,-500.0,0.00019999,3]
[345498327,1734297039602,-500.0,0.00019999,3]
[345498328,1734297039612,-500.0,0.00019999,3]
[345498329,1734297039621,-500.0,0.00019999,3]
[345498330,1734297039631,-500.0,0.00019999,3]
[345498331,1734297039641,-500.0,0.00019999,3]
[345498332,1734297039652,-500.0,0.00019999,3]
[345498333,1734297039662,-500.0,0.00019999,3]
[345498334,1734297039671,-500.0,0.00019999,3]
[345498335,1734297039683,-500.0,0.00019999,3]
[345498336,1734297039692,-500.0,0.00019999,3]
[345498337,1734297039702,-500.0,0.00019999,3]
[345498338,1734297039711,-150.1,0.00019999,3]
[345498339,1734297039719,-500.0,0.00019999,3]
[345498340,1734297039729,-316.92,0.00019999,3]
[345498341,1734297039739,-500.0,0.00019999,3]
[345498342,1734297039749,-500.0,0.00019999,3]
[345498343,1734297039760,-500.0,0.00019999,3]
[345498344,1734297039770,-500.0,0.00019999,3]
[345498345,1734297039779,-500.0,0.00019999,3]
[345498346,1734297039789,-500.0,0.00019999,3]
[345498347,1734297039798,-644.71539157,0.00019999,3]
[345498348,1734297039807,-500.0,0.00019999,3]
[345498349,1734297039816,-500.0,0.00019999,3]
[345498350,1734297039826,-500.0,0.00019999,3]
[345498351,1734297039835,-500.0,0.00019999,3]
[345498352,1734297039844,-500.0,0.00019999,3]
[345498353,1734297039854,-500.0,0.00019999,3]
[345498354,1734297039863,-500.0,0.00019999,3]
[345498355,1734297039872,-500.0,0.00019999,3]
[345498356,1734297039882,-500.0,0.00019999,3]
[345498357,1734297039891,-500.0,0.00019999,3]
[345498358,1734297039901,-500.0,0.00019999,3]
[345498359,1734297039910,-500.0,0.00019999,3]
[345498360,1734297039919,-500.0,0.00019999,3]
[345498361,1734297039928,-357.89,0.00019999,3]
[345498362,1734297039938,-795.12598962,0.0002,2]
[345498363,1734297039955,-5891.97603874,0.0002,2]
[345498364,1734297039967,-23312.89797164,0.0002,2]
[345498365,1734297039977,-538.0,0.0002,2]
[345498366,1734297039986,-40660.38820966,0.0002,4]
[345498367,1734297039995,-289.45057395,0.0002,2]
[345498368,1734297040005,-38199.26324475,0.0002,2]
[345498369,1734297040025,-775.94,0.0002,2]
[345498370,1734297040040,-156869.07383372,0.0002,2]
[345498371,1734297040052,-4827.74473643,0.0002,2]
[345498372,1734297040115,-500.0,0.00019998,3]
[345498373,1734297040124,-500.0,0.00019999,3]
[345498374,1734297040134,-500.0,0.00019999,3]
[345498375,1734297040145,-240385.24835979,0.0002,2]
[345498376,1734297040156,-3821.12700008,0.0002,2]
[345498384,1734297042640,-1548.94363618,0.0002,2]
[345498385,1734297042805,-870981.15841254,0.0002,2]
[345498386,1734297042863,-7049.7,0.0002,2]
[345498387,1734297042874,-487.98,0.0002,2]
[345498388,1734297042885,-505.79,0.0002,2]
[345498392,1734297045527,-784.06356657,0.0002,2]
[345498393,1734297045639,-34835.30596151,0.0002,2]
[345498394,1734297046180,-401.96291768,0.0002,2]
[345498395,1734297046192,-447.18208319,0.0002,2]
[345498396,1734297046203,-5175.30570569,0.0002,2]
[345498397,1734297046214,-129165.31237085,0.0002,2]
[345498398,1734297046225,-120601.96856051,0.0002,2]
[345498401,1734297908358,17155.86163043,0.0001,2]
[345498402,1734297908384,64393.28003089,0.0001,2]
[345498403,1734297952327,10011.855616,0.0002,120]
[345498410,1734298231780,-599.96,0.0001697,2]
[345498411,1734298231792,-1147.91,0.00017678,2]
[345498412,1734298231902,-416.55483636,0.00017678,2]
[345498413,1734298231911,-678.70726143,0.00018068,2]
[345498414,1734298231923,-21.29273857,0.00018068,2]
[345498415,1734298231933,-287.86891143,0.00018455,2]
[345498416,1734298231944,-13011.13108857,0.00018455,2]
[345498417,1734298231954,-152.0,0.00018622,3]
[345498418,1734298231963,-250.0,0.00018677,2]
[345498419,1734298231973,-1000.0,0.00018719,2]
[345498420,1734298231982,-359.85,0.00018742,2]
[345498421,1734298231991,-184.67,0.00018761,2]
[345498422,1734298232008,-203.85,0.00018831,2]
[345498423,1734298232026,-250.0,0.00018908,2]
[345498424,1734298232036,-200.0,0.00018946,2]
[345498425,1734298232045,-735.38,0.00018951,2]
[345498426,1734298232054,-499.52,0.00018965,2]
[345498427,1734298232063,-595.552,0.00019,2]
[345498428,1734298232073,-541.29,0.00019012,2]
[345498429,1734298232083,-500.0,0.00019164,2]
[345498430,1734298232092,-700.0,0.00019164,2]
[345498431,1734298232101,-193.53,0.0001918,30]
[345498432,1734298232111,-599.96,0.00019234,2]
[345498433,1734298232120,-1138.64783537,0.000196,2]
[345498434,1734298232129,-338.361,0.00019648,2]
[345498435,1734298232138,-735.38,0.00019653,2]
[345498436,1734298232147,-518.64570365,0.00019699,2]
[345498437,1734298232157,-2677.0,0.000197,3]
[345498438,1734298232166,-298.68875299,0.000197,3]
[345498439,1734298232179,-701.31124701,0.000197,3]
[345498440,1734298232187,-325.88875299,0.000197,4]
[345498441,1734298232199,-546.11124701,0.000197,4]
[345498442,1734298232208,-1000.0,0.000197,3]
[345498443,1734298232218,-1000.0,0.000197,4]
[345498444,1734298232228,-719.4694,0.000197,2]
[345498445,1734298232237,-518.64570364,0.000197,2]
[345498446,1734298232247,-200.0,0.00019761,2]
[345498447,1734298232256,-200.0,0.00019765,2]
[345498448,1734298232266,-200.0,0.00019767,2]
[345498449,1734298232275,-150.92,0.0001979,2]
[345498450,1734298232285,-150.92,0.0001979,2]
[345498451,1734298232294,-150.92,0.0001979,2]
[345498452,1734298232303,-150.92,0.0001979,2]
[345498453,1734298232313,-150.92,0.0001979,2]
[345498454,1734298232322,-150.92,0.0001979,2]
[345498455,1734298232332,-150.92,0.0001979,2]
[345498456,1734298232342,-150.92,0.0001979,2]
[345498458,1734298232351,-150.92,0.0001979,2]
[345498459,1734298232361,-150.92,0.0001979,2]
[345498460,1734298232371,-200.0,0.00019795,2]
[345498461,1734298232380,-200.0,0.00019798,2]
[345498462,1734298232389,-500.0,0.00019799,3]
[345498463,1734298232399,-500.0,0.00019799,3]
[345498464,1734298232408,-126.9784314,0.00019799,3]
[345498465,1734298232427,-373.0215686,0.00019799,3]
[345498466,1734298232436,-500.0,0.00019799,3]
[345498467,1734298232445,-306.9784301,0.00019799,3]
[345498468,1734298232457,-193.0215699,0.00019799,3]
[345498469,1734298232466,-498.5946443,0.00019799,3]
[345498470,1734298232475,-500.0,0.00019799,3]
[345498471,1734298232484,-500.0,0.00019799,3]
[345498472,1734298232494,-500.0,0.00019799,3]
[345498473,1734298232508,-500.0,0.00019799,3]
[345498474,1734298232521,-500.0,0.00019799,3]
[345498475,1734298232531,-500.0,0.00019799,3]
[345498476,1734298232540,-500.0,0.00019799,3]
[345498477,1734298232549,-500.0,0.00019799,3]
[345498478,1734298232561,-500.0,0.00019799,3]
[345498479,1734298232572,-524.32,0.00019799,3]
[345498480,1734298232582,-500.0,0.00019799,3]
[345498481,1734298232592,-500.0,0.00019799,3]
[345498482,1734298232601,-309.01,0.00019799,3]
[345498483,1734298232610,-375.05378579,0.00019799,3]
[345498484,1734298232621,-124.94621421,0.00019799,3]
[345498485,1734298232629,-425.68231315,0.00019799,3]
[345498486,1734298232641,-74.31768685,0.00019799,3]
[345498487,1734298232650,-359.3958295,0.00019799,3]
[345498488,1734298232659,-107.67281195,0.00019799,3]
[345498489,1734298232671,-392.32718805,0.00019799,3]
[345498490,1734298232680,-500.0,0.00019799,3]
[345498491,1734298232689,-122.03114941,0.00019799,3]
[345498492,1734298232702,-509.48885059,0.00019799,3]
[345498493,1734298232711,-370.8,0.00019799,3]
[345498494,1734298232720,-443.94,0.00019799,3]
[345498495,1734298232729,-500.0,0.00019799,3]
[345498496,1734298232738,-337.77618291,0.00019799,3]
[345498497,1734298232750,-162.22381709,0.00019799,3]
[345498498,1734298232759,-500.0,0.00019799,3]
[345498499,1734298232768,-500.0,0.00019799,3]
[345498500,1734298232777,-500.0,0.00019799,3]
[345498502,1734298232788,-500.0,0.00019799,3]
[345498504,1734298232797,-174.31,0.00019799,3]
[345498505,1734298232806,-500.0,0.00019799,3]
[345498507,1734298232815,-500.0,0.00019799,3]
[345498509,1734298232826,-500.0,0.00019799,3]
[345498511,1734298232836,-167.37,0.00019799,3]
[345498513,1734298232845,-500.0,0.00019799,3]
[345498514,1734298232855,-500.0,0.00019799,3]
[345498515,1734298232867,-500.0,0.00019799,3]
[345498516,1734298232876,-582.27,0.00019799,3]
[345498517,1734298232885,-500.0,0.00019799,3]
[345498518,1734298232894,-500.0,0.00019799,3]
[345498519,1734298232903,-500.0,0.00019799,3]
[345498520,1734298232912,-197.13,0.00019799,3]
[345498521,1734298232921,-500.0,0.00019799,3]
[345498522,1734298232930,-500.0,0.00019799,3]
[345498523,1734298232939,-500.0,0.00019799,3]
[345498524,1734298232948,-500.0,0.00019799,3]
[345498525,1734298232957,-500.0,0.00019799,3]
[345498526,1734298232967,-500.0,0.00019799,3]
[345498527,1734298232975,-500.0,0.00019799,3]
[345498528,1734298232984,-607.25,0.00019799,3]
[345498529,1734298232993,-500.0,0.00019799,3]
[345498530,1734298233006,-500.0,0.00019799,3]
[345498531,1734298233015,-500.0,0.00019799,3]
[345498532,1734298233024,-500.0,0.00019799,3]
[345498533,1734298233034,-500.0,0.00019799,3]
[345498534,1734298233043,-500.0,0.00019799,3]
[345498535,1734298233052,-500.0,0.00019799,3]
[345498536,1734298233061,-500.0,0.00019799,3]
[345498537,1734298233070,-500.0,0.00019799,3]
[345498538,1734298233080,-500.0,0.00019799,3]
[345498539,1734298233089,-500.0,0.00019799,3]
[345498540,1734298233099,-484.08570233,0.00019799,3]
[345498541,1734298233108,-500.0,0.00019799,3]
[345498542,1734298233117,-500.0,0.00019799,3]
[345498543,1734298233126,-326.8,0.00019799,3]
[345498544,1734298233135,-500.0,0.00019799,3]
[345498545,1734298233145,-500.0,0.00019799,3]
[345498546,1734298233154,-500.0,0.00019799,3]
[345498547,1734298233163,-500.0,0.00019799,3]
[345498548,1734298233172,-516.15134292,0.00019799,3]
[345498549,1734298233182,-500.0,0.00019799,3]
[345498550,1734298233191,-500.0,0.00019799,3]
[345498551,1734298233200,-500.0,0.00019799,3]
[345498552,1734298233209,-621.25,0.00019799,3]
[345498553,1734298233218,-500.0,0.00019799,3]
[345498554,1734298233228,-500.0,0.00019799,3]
[345498555,1734298233237,-500.0,0.00019799,3]
[345498556,1734298233247,-500.0,0.00019799,3]
[345498557,1734298233259,-500.0,0.00019799,3]
[345498558,1734298233269,-180.31,0.00019799,3]
[345498559,1734298233278,-470.36,0.00019799,3]
[345498560,1734298233288,-500.0,0.00019799,3]
[345498561,1734298233297,-500.0,0.00019799,3]
[345498562,1734298233310,-500.0,0.00019799,3]
[345498563,1734298233319,-500.0,0.00019799,3]
[345498564,1734298233328,-500.0,0.00019799,3]
[345498565,1734298233337,-500.0,0.00019799,3]
[345498566,1734298233347,-500.0,0.00019799,3]
[345498567,1734298233356,-500.0,0.00019799,3]
[345498568,1734298233366,-287.18,0.00019799,3]
[345498569,1734298233377,-500.0,0.00019799,3]
[345498570,1734298233387,-500.0,0.00019799,3]
[345498571,1734298233396,-247.88,0.00019799,3]
[345498572,1734298233406,-573.44,0.00019799,3]
[345498573,1734298233415,-500.0,0.00019799,3]
[345498574,1734298233424,-500.0,0.00019799,3]
[345498575,1734298233434,-500.0,0.00019799,3]
[345498576,1734298233443,-500.0,0.00019799,3]
[345498577,1734298233452,-573.61,0.00019799,3]
[345498578,1734298233461,-182.94,0.00019799,3]
[345498579,1734298233470,-287.80963269,0.00019799,3]
[345498580,1734298233479,-500.0,0.00019799,3]
[345498581,1734298233666,-488.91,0.00019799,3]
[345498582,1734298233678,-500.0,0.00019799,3]
[345498583,1734298233688,-500.0,0.00019799,3]
[345498584,1734298233698,-500.0,0.00019799,3]
[345498585,1734298233707,-500.0,0.00019799,3]
[345498586,1734298233716,-500.0,0.00019799,3]
[345498587,1734298233725,-597.9392444,0.00019799,3]
[345498588,1734298233734,-500.0,0.00019799,3]
[345498589,1734298233743,-388.0711858,0.00019799,3]
[345498590,1734298233752,-500.0,0.00019799,3]
[345498591,1734298233761,-500.0,0.00019799,3]
[345498592,1734298233771,-500.0,0.00019799,3]
[345498593,1734298233783,-500.0,0.00019799,3]
[345498594,1734298233792,-197.06,0.00019799,3]
[345498595,1734298233802,-500.0,0.00019799,3]
[345498596,1734298233811,-500.0,0.00019799,3]
[345498597,1734298233820,-500.0,0.00019799,3]
[345498598,1734298233831,-500.0,0.00019799,3]
[345498599,1734298233840,-555.32,0.00019799,3]
[345498600,1734298233849,-500.0,0.00019799,3]
[345498601,1734298233861,-500.0,0.00019799,3]
[345498602,1734298233870,-220.65,0.00019799,3]
[345498603,1734298233879,-527.37,0.00019799,3]
[345498604,1734298233888,-527.37,0.00019799,3]
[345498605,1734298233897,-527.37,0.00019799,3]
[345498606,1734298233906,-527.37,0.00019799,3]
[345498607,1734298233915,-527.37,0.00019799,3]
[345498608,1734298233924,-527.37,0.00019799,3]
[345498609,1734298233933,-527.37,0.00019799,3]
[345498610,1734298233942,-407.95,0.00019799,3]
[345498611,1734298233952,-500.0,0.00019799,3]
[345498612,1734298233961,-500.0,0.00019799,3]
[345498613,1734298233971,-500.0,0.00019799,3]
[345498614,1734298233980,-413.28752871,0.00019799,3]
[345498615,1734298233989,-500.0,0.00019799,3]
[345498616,1734298233999,-395.38186508,0.00019799,3]
[345498617,1734298234008,-500.0,0.00019799,3]
[345498618,1734298234018,-500.0,0.00019799,3]
[345498619,1734298234027,-500.0,0.00019799,3]
[345498620,1734298234037,-500.0,0.00019799,3]
[345498621,1734298234046,-522.36,0.00019799,3]
[345498622,1734298234056,-618.00146231,0.00019799,3]
[345498623,1734298234065,-205.18,0.00019799,3]
[345498624,1734298234074,-500.0,0.00019799,3]
[345498625,1734298234084,-500.0,0.00019799,3]
[345498626,1734298234093,-500.0,0.00019799,3]
[345498627,1734298234102,-500.0,0.00019799,3]
[345498628,1734298234111,-163.6085303,0.00019799,3]
[345498629,1734298234120,-500.0,0.00019799,3]
[345498630,1734298234129,-500.0,0.00019799,3]
[345498631,1734298234138,-500.0,0.00019799,3]
[345498632,1734298234147,-500.0,0.00019799,3]
[345498633,1734298234156,-500.0,0.00019799,3]
[345498634,1734298234165,-500.0,0.00019799,3]
[345498635,1734298234175,-293.54,0.00019799,3]
[345498636,1734298234184,-500.0,0.00019799,3]
[345498637,1734298234193,-500.0,0.00019799,3]
[345498638,1734298234203,-500.0,0.00019799,3]
[345498639,1734298234212,-500.0,0.00019799,3]
[345498640,1734298234221,-500.0,0.00019799,3]
[345498641,1734298234230,-500.0,0.00019799,3]
[345498642,1734298234239,-424.51669599,0.00019799,3]
[345498643,1734298234248,-500.0,0.00019799,3]
[345498644,1734298234257,-500.0,0.00019799,3]
[345498645,1734298234266,-500.0,0.00019799,3]
[345498646,1734298234275,-500.0,0.00019799,3]
[345498647,1734298234284,-500.0,0.00019799,3]
[345498648,1734298234294,-500.0,0.00019799,3]
[345498649,1734298234303,-500.0,0.00019799,3]
[345498650,1734298234312,-500.0,0.00019799,3]
[345498651,1734298234322,-500.0,0.00019799,3]
[345498652,1734298234331,-500.0,0.00019799,3]
[345498653,1734298234341,-500.0,0.00019799,3]
[345498654,1734298234350,-500.0,0.00019799,3]
[345498655,1734298234359,-500.0,0.00019799,3]
[345498656,1734298234369,-500.0,0.00019799,3]
[345498657,1734298234378,-500.0,0.00019799,3]
[345498658,1734298234388,-540.00828748,0.00019799,3]
[345498659,1734298234398,-500.0,0.00019799,3]
[345498660,1734298234407,-500.0,0.00019799,3]
[345498661,1734298234417,-627.33602433,0.00019799,3]
[345498662,1734298234427,-500.0,0.00019799,3]
[345498663,1734298234436,-500.0,0.00019799,3]
[345498664,1734298234445,-392.9,0.00019799,3]
[345498665,1734298234454,-500.0,0.00019799,3]
[345498666,1734298234464,-500.0,0.00019799,3]
[345498667,1734298234474,-500.0,0.00019799,3]
[345498668,1734298234484,-580.01,0.00019799,3]
[345498669,1734298234493,-629.85,0.00019799,3]
[345498670,1734298234503,-500.0,0.00019799,3]
[345498671,1734298234513,-628.03,0.00019799,3]
[345498672,1734298234522,-463.68,0.00019799,3]
[345498673,1734298234532,-500.0,0.00019799,3]
[345498674,1734298234541,-500.0,0.00019799,3]
[345498675,1734298234551,-552.53,0.00019799,3]
[345498676,1734298234561,-500.0,0.00019799,3]
[345498677,1734298234570,-500.0,0.00019799,3]
[345498678,1734298234580,-500.0,0.00019799,3]
[345498679,1734298234589,-500.0,0.00019799,3]
[345498680,1734298234599,-500.0,0.00019799,3]
[345498681,1734298234610,-600.48,0.00019799,3]
[345498682,1734298234619,-500.0,0.00019799,3]
[345498683,1734298234628,-500.0,0.00019799,3]
[345498684,1734298234638,-500.0,0.00019799,3]
[345498685,1734298234648,-500.0,0.00019799,3]
[345498686,1734298234657,-210.36,0.00019799,3]
[345498687,1734298234666,-500.0,0.00019799,3]
[345498688,1734298234676,-500.0,0.00019799,3]
[345498689,1734298234685,-500.0,0.00019799,3]
[345498690,1734298234695,-500.0,0.00019799,3]
[345498691,1734298234705,-500.0,0.00019799,3]
[345498692,1734298234714,-411.32,0.00019799,3]
[345498693,1734298234723,-500.0,0.00019799,3]
[345498694,1734298234733,-561.3,0.00019799,3]
[345498695,1734298234742,-500.0,0.00019799,3]
[345498696,1734298234752,-500.0,0.00019799,3]
[345498697,1734298234761,-500.0,0.00019799,3]
[345498698,1734298234771,-500.0,0.00019799,3]
[345498699,1734298234783,-500.0,0.00019799,3]
[345498700,1734298234792,-500.0,0.00019799,3]
[345498701,1734298234801,-323.37,0.00019799,3]
[345498702,1734298234810,-500.0,0.00019799,3]
[345498703,1734298234820,-397.73,0.00019799,3]
[345498704,1734298234830,-500.0,0.00019799,3]
[345498705,1734298234841,-500.0,0.00019799,3]
[345498706,1734298234851,-500.0,0.00019799,3]
[345498707,1734298234861,-500.0,0.00019799,3]
[345498708,1734298234871,-154.81,0.00019799,3]
[345498709,1734298234880,-500.0,0.00019799,3]
[345498710,1734298234889,-500.0,0.00019799,3]
[345498711,1734298234898,-500.0,0.00019799,3]
[345498712,1734298234908,-500.0,0.00019799,3]
[345498713,1734298234917,-500.0,0.00019799,3]
[345498714,1734298234926,-500.0,0.00019799,3]